Workbook

Sheet 25 декабря
I1: Утверждаю:
I2: Директор школы | L2: Н.П.Семенов
E4: МЕНЮ ДНЯ | K4: ='[1]19'!$B$1 -> 25 | L4: декабрь | M4: 2025 год.
D6: МБОУ"ПАВЛОВСКАЯ СОШ"
A8: РАЗДЕЛ | B8: № РЕЦ. | C8: БЛЮДО | H8: ВЫХОД | I8: ЦЕНА | J8: КАЛОРИЙ | K8: БЕЛКИ | L8: ЖИРЫ | M8: УГЛЕВО
H9: г | J9: НОСТЬ | M9: ДЫ
A10: ОВЗ | C10: 7-11 лет
B11: 91№210 | C11: ='[2]9'!$B$7 -> КАША МОЛ,"ДРУЖБА" | H11: 200 | I11: ='[2]9'!$BK$7 -> 19.47 | J11: 240 | K11: 6.33 | L11: 8.68 | M11: 33.44
B12: №8 | C12: ='[2]9'!$B$8 -> БАТОН | H12: 40 | I12: ='[2]9'!$BK$8 -> 3.51 | J12: 85.7 | K12: 2.4 | L12: 0.8 | M12: 16.7
B13: 208№311 | C13: ='[2]19'!$B$9 -> КОМПОТ ИЗ СВЕЖИХ ЯГОД | H13: 200 | I13: ='[2]9'!$BK$9 -> 0.94 | J13: =E13 -> 0 | K13: =F13 -> 0 | L13: =G13 -> 0 | M13: =H13 -> 200
C14: ИТОГО | H14: =SUM(H11:H13) -> 440 | I14: =SUM(I11:I13) -> 23.92 | J14: =SUM(J11:J13) -> 325.7 | K14: =SUM(K11:K13) -> 8.73 | L14: =SUM(L11:L13) -> 9.48 | M14: =SUM(M11:M13) -> 250.14
C15: от 12 и старше лет
B16: 91№210 | C16: ='[2]9'!$B$21 -> КАША МОЛ,"ДРУЖБА" | H16: 200 | I16: ='[2]19'!$BK$21 -> 19.47 | J16: 240 | K16: 6.33 | L16: 8.68 | M16: 33.44
B17: №8 | C17: ='[2]9'!$B$22 -> БАТОН | H17: 40 | I17: ='[2]19'!$BK$22 -> 4.69 | J17: 85.7 | K17: 2.4 | L17: 0.8 | M17: 16.7
B18: 208№311 | C18: ='[2]9'!$B$23 -> КОМПОТ ИЗ СВЕЖИХ ЯГОД | H18: 200 | I18: ='[2]19'!$BK$23 -> 0.94 | J18: 70 | K18: 0.2 | L18: 0.1 | M18: 17.2
C19: ИТОГО | H19: =SUM(H16:H18) -> 440 | I19: =SUM(I16:I18) -> 25.10 | J19: =SUM(J16:J18) -> 395.7 | K19: =SUM(K16:K18) -> 8.93 | L19: =SUM(L16:L18) -> 9.58 | M19: =SUM(M16:M18) -> 67.34
A20: 5-11 класс
C21: от 12 и старше лет
B22: 64№2.3. | C22: ='[1]9'!$B$21 -> САЛАТ ИЗ МОРК С ЗЕЛ ГОРОШКОМ | H22: 100 | I22: ='[1]19'!$BK$21 -> 8.29 | J22: 116 | K22: 1.8 | L22: 8.9 | M22: 5.7
B23: 77№58 | C23: ='[1]9'!$B$22 -> БОРЩС КАРТОФЕЛЕМ И КАПУСТОЙ | H23: 250 | I23: ='[1]19'!$BK$22 -> 5.23 | J23: 111 | K23: 2 | L23: 5.4 | M23: 12.8
B24: №34 | C24: ='[1]19'!$B$23 -> КОТЛЕТА ИЗ МЯСА ПТИЦЫ РУБ. | H24: 100 | I24: ='[1]19'!$BK$23 -> 47.74 | J24: 174.2 | K24: 6.54 | L24: 8.11 | M24: 12.4
B25: 112№227(2) | C25: ='[1]9'!$B$24 -> МАКАРОНЫ ОТВАРНЫЕ | H25: 180 | I25: ='[1]19'!$BK$24 -> 8.05 | J25: 233 | K25: 6.5 | L25: 4.4 | M25: 40
B26: 300 | C26: ='[1]9'!$B$25 -> ЧАЙ | H26: 200 | I26: ='[1]19'!$BK$25 -> 1.65 | J26: 36 | K26: 0.2 | M26: 9.1
B27: №7 | C27: ='[1]19'!$B$26 -> ХЛЕБ | H27: 50 | I27: ='[1]19'!$BK$26 -> 3.25 | J27: 108.6 | K27: 3.96 | L27: 0.72 | M27: 1.38
C28: ='[1]9'!$B$27 -> 0 | I28: ='[1]9'!$BK$27 -> 0.00
C29: ='[1]9'!$B$28 -> 0 | I29: ='[1]3'!$BK$28 -> 0.00
C30: ИТОГО | H30: =SUM(H22:H29) -> 880 | I30: =SUM(I22:I29) -> 74.21 | J30: =SUM(J21:J29) -> 778.8 | K30: =SUM(K21:K29) -> 21 | L30: =SUM(L21:L29) -> 27.53 | M30: =SUM(M21:M29) -> 81.38
C31: Составил Агеева Г.Н. | K31: Повар Фролова Л.Н.
